bitfinex-derivatives/quotes_BTCF0:USTF0_20241015
["timestamp","ask_amount","ask_price","bid_price","bid_amount"]
[1729028861621,0.01343014,66429.0,66426.0,0.548075]
[1729028861923,0.03687819,66428.0,66426.0,0.548075]
[1729028862123,0.01343014,66429.0,66426.0,0.548075]
[1729028862720,0.01443014,66429.0,66426.0,0.547075]
[1729028863020,0.01443014,66429.0,66428.0,0.075273]
[1729028864324,0.01443014,66429.0,66428.0,0.088273]
[1729028864824,0.01443014,66429.0,66428.0,0.278273]
[1729028865024,0.06065395,66429.0,66428.0,0.278273]
[1729028865228,0.09653174,66429.0,66428.0,0.278273]
[1729028865418,0.09653174,66429.0,66428.0,0.284273]
[1729028866323,0.26116308,66429.0,66428.0,0.284273]
[1729028866929,0.09653174,66429.0,66428.0,0.284273]
[1729028867429,0.24620942,66429.0,66428.0,0.284273]
[1729028868030,0.24621028,66429.0,66428.0,0.284273]
[1729028868535,0.0965326,66429.0,66428.0,0.284273]
[1729028870147,0.0965326,66429.0,66428.0,0.395273]
[1729028870544,0.08536145,66429.0,66428.0,0.395273]
[1729028872052,0.00225899,66429.0,66428.0,0.395273]
[1729028878057,0.00225899,66429.0,66428.0,0.756073]
[1729028879263,0.00225899,66429.0,66428.0,0.395273]
[1729028879562,0.00225899,66429.0,66428.0,1.116873]
[1729028879966,0.11,66445.0,66428.0,1.116873]
[1729028880262,0.075264,66436.0,66435.0,0.075262]
[1729028880561,0.075264,66436.0,66435.0,0.436062]
[1729028880763,0.075264,66436.0,66435.0,0.428062]
[1729028881859,0.075264,66436.0,66435.0,0.538062]
[1729028882053,0.075264,66436.0,66435.0,0.549062]
[1729028882449,0.075264,66436.0,66435.0,0.554062]
[1729028883464,0.11213616,66436.0,66435.0,0.554062]
[1729028886866,0.11213595,66436.0,66435.0,0.554062]
[1729028887164,0.15835244,66436.0,66435.0,0.554062]
[1729028887568,0.15835244,66436.0,66435.0,0.56490879]
[1729028888669,0.15835244,66436.0,66435.0,0.554062]
[1729028889057,0.08308844,66436.0,66435.0,0.554062]
[1729028890067,0.08308844,66436.0,66435.0,0.553062]
[1729028890459,0.08308844,66436.0,66435.0,0.552062]
[1729028891864,0.0830884,66436.0,66435.0,0.552062]
[1729028895263,0.03687193,66436.0,66435.0,0.552062]
[1729028895663,0.11213593,66436.0,66435.0,0.552062]
[1729028896164,0.11213593,66436.0,66435.0,0.544062]
[1729028896365,0.15835427,66436.0,66435.0,0.544062]
[1729028896570,0.15835577,66436.0,66435.0,0.544062]
[1729028896761,0.15835577,66436.0,66435.0,0.183262]
[1729028897570,0.30813237,66436.0,66435.0,0.183262]
[1729028898165,0.15835577,66436.0,66435.0,0.183262]
[1729028898465,0.30813237,66436.0,66435.0,0.183262]
[1729028899066,0.15835577,66436.0,66435.0,0.183262]
[1729028899267,0.30808124,66436.0,66435.0,0.183262]
[1729028899465,0.15835577,66436.0,66435.0,0.014]
[1729028899670,0.16918294,66436.0,66435.0,0.014]
[1729028900063,0.76918294,66436.0,66426.0,0.11]
[1729028900278,0.075274,66427.0,66426.0,0.11]
[1729028900568,0.11214743,66427.0,66426.0,0.11]
[1729028900773,0.15836577,66427.0,66426.0,0.11]
[1729028900964,0.51916577,66427.0,66426.0,0.11]
[1729028901268,0.21238124,66427.0,66426.0,0.12]
[1729028901471,0.23990067,66427.0,66426.0,0.12]
[1729028901859,0.32300845,66427.0,66426.0,0.12]
[1729028902178,0.29307534,66427.0,66426.0,0.12]
[1729028902362,0.15838178,66427.0,66426.0,0.01]
[1729028902759,0.15838178,66427.0,66426.0,0.014]
[1729028902960,0.61002178,66427.0,66426.0,0.014]
[1729028903164,1.26403801,66427.0,66426.0,0.014]
[1729028903569,1.27484554,66427.0,66426.0,0.004]
[1729028903778,1.27584554,66427.0,66426.0,0.008]
[1729028904477,0.07528,66422.0,66421.0,0.00225794]
[1729028904973,0.21240401,66422.0,66421.0,0.00225794]
[1729028905162,0.43630401,66422.0,66421.0,0.00225794]
[1729028905563,1.48798401,66422.0,66421.0,0.00225794]
[1729028905764,1.48798401,66422.0,66418.0,0.1354]
[1729028905970,0.075283,66419.0,66418.0,0.1354]
[1729028906270,0.15839078,66419.0,66418.0,0.1354]
[1729028907776,0.15939078,66419.0,66418.0,0.1454]
[1729028908377,0.16039078,66419.0,66418.0,0.1514]
[1729028908772,0.15939078,66419.0,66418.0,0.1454]
[1729028908974,0.16039078,66419.0,66418.0,0.1514]
[1729028909971,0.17127382,66419.0,66413.0,0.11]
[1729028910170,0.17127382,66419.0,66385.0,0.3301]
[1729028910171,0.0753,66404.0,66385.0,0.3301]
[1729028910375,0.075319,66387.0,66386.0,0.11]
[1729028910572,0.075316,66390.0,66389.0,0.11]
[1729028911176,0.11,66396.0,66388.0,0.06]
[1729028911369,0.075317,66389.0,66388.0,0.06]
[1729028912070,0.075311,66394.0,66387.0,0.11]
[1729028912071,0.075318,66388.0,66387.0,0.11]
[1729028912278,0.075318,66388.0,66387.0,0.4708]
[1729028912479,0.075318,66388.0,66387.0,0.11]
[1729028912976,0.075318,66388.0,66387.0,0.05]
[1729028913364,0.076318,66388.0,66387.0,0.05]
[1729028913770,0.085318,66388.0,66387.0,0.05]
[1729028921389,0.195318,66388.0,66387.0,0.05]
[1729028923385,1.357198,66388.0,66363.0,0.3608]
[1729028923593,1.357198,66388.0,66335.0,0.07496806]
[1729028923594,0.07535,66360.0,66359.0,0.30163]
[1729028923775,0.18535,66360.0,66359.0,0.30163]
[1729028924287,0.075351,66359.0,66358.0,0.3608]
[1729028924587,0.18535,66360.0,66348.0,0.3608]
[1729028924588,0.075362,66349.0,66348.0,0.3608]
[1729028925777,0.245362,66349.0,66348.0,0.3608]
[1729028926689,0.252362,66349.0,66348.0,0.3608]
[1729028927281,0.252362,66349.0,66348.0,0.3528]
[1729028928088,0.26310305,66349.0,66348.0,0.3528]
[1729028934383,0.18774105,66349.0,66348.0,0.428163]
[1729028934891,0.15002066,66349.0,66348.0,0.428163]
[1729028937386,0.22538266,66349.0,66348.0,0.428163]
[1729028938289,0.15002066,66349.0,66348.0,0.428163]
[1729028941486,0.22538266,66349.0,66348.0,0.428163]
[1729028942589,0.22538266,66349.0,66348.0,0.420163]
[1729028943694,0.22538266,66349.0,66348.0,0.3448]
[1729028943897,0.22538266,66349.0,66348.0,0.420163]
[1729028945597,0.22538266,66349.0,66348.0,0.436163]
[1729028947002,0.22538266,66349.0,66348.0,0.3608]
[1729028947902,0.20310305,66349.0,66348.0,0.5765]
[1729028955305,0.28630807,66349.0,66348.0,0.5765]
[1729028956117,0.4355645,66349.0,66348.0,0.5765]
[1729028956593,0.4355645,66349.0,66348.0,0.2157]
[1729028956801,0.28630807,66349.0,66348.0,0.2157]
[1729028957594,0.28630791,66349.0,66348.0,0.2157]
[1729028957795,0.13002666,66349.0,66348.0,0.291063]
[1729028957994,0.14925643,66356.0,66350.0,0.075361]
[1729028957995,0.14925643,66351.0,66350.0,0.075361]
[1729028958205,0.13471883,66353.0,66350.0,0.436161]
[1729028958409,0.13471883,66354.0,66353.0,0.075358]
[1729028958596,0.04627548,66354.0,66350.0,0.428161]
[1729028958903,0.13471883,66355.0,66350.0,0.428161]
[1729028959104,0.0462748,66354.0,66353.0,0.075358]
[1729028959502,0.18099363,66354.0,66353.0,0.075358]
[1729028959809,0.0462748,66354.0,66353.0,0.075358]
[1729028960402,0.19199363,66354.0,66353.0,0.076358]
[1729028960606,0.19699363,66354.0,66353.0,0.077358]
[1729028961409,0.0622748,66354.0,66353.0,0.077358]
[1729028962202,0.15061243,66354.0,66353.0,0.077358]
[1729028962401,0.016,66354.0,66353.0,0.077358]
[1729028963206,0.016,66354.0,66353.0,0.438158]
[1729028966104,0.016,66354.0,66353.0,0.44889223]
[1729028973817,0.016,66354.0,66353.0,0.44089223]
[1729028975521,0.016,66354.0,66353.0,1.49301223]
[1729028975819,0.016,66354.0,66353.0,0.89301223]
[1729028976122,0.016,66354.0,66353.0,1.49301223]
[1729028977714,0.09918828,66354.0,66353.0,1.49301223]
[1729028978311,0.15052169,66354.0,66353.0,1.49301223]
[1729028978518,0.23370997,66354.0,66353.0,1.49301223]
[1729028979218,0.09918828,66354.0,66353.0,1.49301223]
[1729028980727,0.09918598,66354.0,66353.0,1.49301223]
[1729028982224,0.18044121,66354.0,66353.0,1.49301223]
[1729028982425,0.26362719,66354.0,66353.0,1.49301223]
[1729028982922,0.09918598,66354.0,66353.0,1.49301223]
[1729028983221,0.09918598,66354.0,66353.0,1.85381223]
[1729028983426,0.26362719,66354.0,66353.0,1.85381223]
[1729028983643,0.09918598,66354.0,66353.0,1.25381223]
[1729028984320,0.26362719,66354.0,66353.0,1.25381223]
[1729028985228,0.26362719,66354.0,66353.0,0.53221223]
[1729028985428,0.18044121,66354.0,66353.0,1.25381223]
[1729028985724,0.016,66354.0,66353.0,0.53221223]
[1729028985925,0.016,66354.0,66353.0,1.25381223]
[1729028988734,0.016,66354.0,66353.0,0.80169223]
[1729028990638,0.0529152,66354.0,66353.0,0.80169223]
[1729028991734,0.0529152,66354.0,66353.0,0.08009223]
[1729028991937,0.0529152,66354.0,66353.0,0.80169223]
[1729028992129,0.0529152,66354.0,66353.0,0.08009223]
[1729028992334,0.0529152,66354.0,66353.0,0.80169223]
[1729028992535,0.016,66354.0,66353.0,0.80169223]
[1729028993030,0.18064323,66354.0,66353.0,0.80169223]
[1729028993345,0.24886157,66354.0,66353.0,0.80169223]
[1729028993537,0.09918591,66354.0,66353.0,0.80169223]
[1729028995330,0.09918591,66354.0,66353.0,1.40169223]
[1729028996437,0.09918591,66354.0,66353.0,1.51169223]
[1729028996820,0.15071342,66354.0,66353.0,1.62169223]
[1729028997026,0.15071342,66354.0,66353.0,1.51169223]
[1729028997337,0.15071342,66354.0,66353.0,1.96381223]
[1729028997522,0.23388453,66354.0,66353.0,1.96381223]
[1729028997729,0.09918591,66354.0,66353.0,2.07381223]
[1729028998028,0.14967566,66358.0,66353.0,2.07381223]
[1729028998332,0.16464323,66365.0,66364.0,0.075345]
[1729028998527,0.11,66369.0,66364.0,0.3608]
[1729028998528,0.16464323,66368.0,66364.0,0.3608]
[1729028998724,0.16464323,66368.0,66367.0,0.075342]
[1729028998926,0.23998323,66369.0,66368.0,0.075341]
[1729028999229,0.08614303,66369.0,66368.0,0.075341]
[1729029000531,0.01080303,66369.0,66368.0,0.075341]
[1729029000843,0.01080303,66369.0,66368.0,0.088341]
[1729029000844,0.001,66369.0,66368.0,0.088341]
[1729029001035,0.002,66369.0,66368.0,0.095341]
[1729029002525,0.002,66369.0,66368.0,0.10636354]
[1729029003338,0.002,66369.0,66368.0,0.095341]
[1729029004533,0.002,66369.0,66368.0,0.087341]
[1729029007532,0.08516383,66369.0,66368.0,0.087341]
[1729029007731,0.08516383,66369.0,66368.0,0.808941]
[1729029009243,0.03890532,66369.0,66368.0,0.808941]
[1729029009440,0.002,66369.0,66368.0,0.808941]
[1729029009838,0.03890532,66369.0,66368.0,0.808941]
[1729029010043,0.08516317,66369.0,66368.0,0.808941]
[1729029011838,0.08516317,66369.0,66368.0,0.087341]
[1729029012039,0.08516317,66369.0,66368.0,0.808941]
[1729029012242,0.15142132,66369.0,66368.0,0.808941]
[1729029012547,0.03890532,66369.0,66368.0,0.808941]
[1729029014442,0.03890323,66369.0,66368.0,0.808941]
[1729029015549,0.002,66369.0,66368.0,0.808941]
[1729029017251,0.075324,66383.0,66382.0,0.075323]
[1729029017451,0.075324,66383.0,66382.0,0.436123]
[1729029018849,0.083324,66383.0,66382.0,0.437123]
[1729029019048,0.091324,66383.0,66382.0,0.438123]
[1729029019253,0.016,66383.0,66382.0,0.438123]
[1729029019851,0.016,66383.0,66382.0,0.430123]
[1729029025958,0.016,66383.0,66382.0,0.44095413]
[1729029030654,0.09915484,66383.0,66382.0,0.44095413]
[1729029035065,0.09915484,66383.0,66382.0,0.43295413]
[1729029037665,0.016,66383.0,66382.0,0.43295413]
[1729029038972,0.075314,66392.0,66382.0,1.03295413]
[1729029039164,0.01066126,66393.0,66391.0,0.4708]
[1729029039362,0.14935075,66398.0,66391.0,0.546115]
[1729029039363,0.03689614,66392.0,66391.0,0.546115]
[1729029039565,0.075307,66398.0,66397.0,0.075308]
[1729029039765,0.03689487,66398.0,66397.0,0.436108]
[1729029040063,0.01079555,66401.0,66397.0,0.436108]
[1729029040269,0.075301,66404.0,66397.0,0.436108]
[1729029040270,0.03689275,66400.0,66397.0,0.436108]
[1729029040573,0.075301,66404.0,66403.0,0.075301]
[1729029040758,0.11219167,66404.0,66403.0,0.436101]
[1729029040958,0.03689067,66404.0,66403.0,0.436101]
[1729029041570,0.03689014,66405.0,66404.0,0.0753]
[1729029041772,0.03689014,66405.0,66404.0,0.1853]
[1729029041773,0.03688992,66405.0,66404.0,0.1853]
[1729029042169,0.075297,66407.0,66405.0,0.075298]
[1729029042369,0.03688983,66406.0,66405.0,0.075298]
[1729029043176,0.075297,66407.0,66405.0,0.075298]
[1729029043873,0.075297,66407.0,66406.0,0.075298]
[1729029045763,0.075297,66407.0,66405.0,0.015]
[1729029045764,0.01293084,66408.0,66405.0,0.015]
[1729029045959,0.03688758,66407.0,66406.0,0.082298]
[1729029046269,0.01293084,66408.0,66407.0,0.185297]
[1729029046464,0.04981943,66408.0,66407.0,0.185297]
[1729029047066,0.01293084,66408.0,66407.0,0.185297]
[1729029048869,0.00225937,66408.0,66407.0,0.208297]
[1729029049576,0.075279,66423.0,66422.0,0.075279]
[1729029049885,0.11216341,66423.0,66422.0,0.075279]
[1729029050268,0.075279,66423.0,66422.0,0.075279]
[1729029050462,0.075279,66423.0,66422.0,0.067279]
[1729029051766,0.077279,66423.0,66422.0,0.067279]
[1729029052975,0.16438794,66423.0,66422.0,0.067279]
[1729029053170,0.31307931,66423.0,66422.0,0.067279]
[1729029053380,0.23780031,66423.0,66422.0,0.067279]
[1729029053573,0.08910894,66423.0,66422.0,0.177279]
[1729029054073,0.08910894,66423.0,66422.0,0.286179]
[1729029054675,0.006,66423.0,66422.0,0.286179]
[1729029054978,0.15465878,66423.0,66422.0,0.286179]
[1729029055170,0.08910894,66423.0,66422.0,0.286179]
[1729029055673,0.13975329,66423.0,66422.0,0.286179]
[1729029055873,0.04288105,66423.0,66422.0,1.337819]
[1729029057877,0.04288105,66423.0,66422.0,1.440719]
[1729029058477,0.13375329,66428.0,66423.0,0.075278]
[1729029058676,0.13375329,66429.0,66427.0,0.3608]
[1729029058974,0.04621886,66428.0,66427.0,0.436074]
[1729029059278,0.20902429,66430.0,66429.0,0.075272]
[1729029059478,0.17997214,66430.0,66429.0,0.185272]
[1729029059673,0.075269,66432.0,66431.0,0.075267]
[1729029060067,0.0110158,66437.0,66429.0,0.546072]
[1729029060379,0.075263,66437.0,66436.0,0.546064]
[1729029060974,0.075259,66440.0,66436.0,0.4708]
[1729029061273,0.075259,66440.0,66439.0,0.075258]
[1729029061480,0.075254,66445.0,66444.0,0.075254]
[1729029061680,0.075254,66445.0,66444.0,0.546054]
[1729029062176,0.075254,66445.0,66444.0,0.4708]
[1729029062380,0.075254,66445.0,66444.0,0.3608]
[1729029063669,0.075254,66445.0,66444.0,0.546055]
[1729029065981,0.075254,66445.0,66444.0,0.538055]
[1729029066579,0.01316101,66447.0,66444.0,0.538055]
[1729029067678,0.08307944,66446.0,66444.0,0.538055]
[1729029067979,0.01316101,66447.0,66444.0,0.539055]
[1729029067980,0.08307944,66445.0,66444.0,0.539055]
[1729029068670,0.08307944,66445.0,66444.0,0.538055]
[1729029068887,0.08307944,66445.0,66444.0,0.539055]
[1729029069273,0.08307944,66445.0,66444.0,0.648055]
[1729029069586,0.08307944,66445.0,66444.0,0.538055]
[1729029069587,0.08507944,66445.0,66444.0,0.538055]
[1729029069795,0.15061428,66445.0,66444.0,0.538055]
[1729029069982,0.19682576,66445.0,66444.0,0.538055]
[1729029070389,0.23369372,66445.0,66444.0,0.538055]
[1729029070583,0.23368997,66445.0,66444.0,0.538055]
[1729029070889,0.08507569,66445.0,66444.0,0.538055]
[1729029071479,7.569e-05,66445.0,66444.0,0.538055]
[1729029071680,0.00225867,66447.0,66446.0,0.075252]
[1729029073086,0.00425867,66447.0,66446.0,0.075252]
[1729029073478,0.00425867,66447.0,66446.0,0.185252]
[1729029074679,0.002,66447.0,66446.0,0.546052]
[1729029075584,0.297541,66456.0,66446.0,0.546052]
[1729029075788,0.297541,66456.0,66455.0,0.4708]
[1729029076883,0.297541,66456.0,66455.0,0.4718]
[1729029077484,0.297541,66456.0,66455.0,0.4728]
[1729029077890,0.30858865,66456.0,66455.0,0.4728]
[1729029078996,0.30858865,66456.0,66455.0,0.4718]
[1729029079394,0.34545282,66456.0,66455.0,0.4718]
[1729029079597,0.34545282,66456.0,66455.0,0.4708]
[1729029079897,0.04791182,66456.0,66455.0,0.4708]
[1729029080095,0.04791182,66456.0,66455.0,0.546042]
[1729029081187,0.04791182,66456.0,66455.0,0.538042]
[1729029081392,0.01104765,66456.0,66455.0,0.538042]
[1729029081591,0.075238,66459.0,66457.0,0.075239]
[1729029081797,0.03686303,66458.0,66457.0,0.075239]
[1729029082196,0.03686303,66458.0,66455.0,0.4628]
[1729029082197,0.01072371,66459.0,66455.0,0.4628]
[1729029082395,0.03686304,66458.0,66457.0,0.07524]
[1729029082586,0.075236,66461.0,66457.0,0.18524]
[1729029082787,0.08306428,66460.0,66457.0,0.18524]
[1729029082987,0.08306428,66459.0,66457.0,0.18524]
[1729029083289,0.08306428,66458.0,66457.0,0.18524]
[1729029083991,0.08306428,66458.0,66457.0,0.18624]
[1729029085197,0.08306293,66458.0,66457.0,0.111]
[1729029085494,0.08306293,66458.0,66457.0,0.18624]
[1729029086086,0.08306293,66458.0,66457.0,0.18524]
[1729029088994,0.08306293,66458.0,66457.0,0.19124]
[1729029089390,0.08306293,66458.0,66457.0,0.19624]
[1729029089593,0.08306293,66458.0,66457.0,0.55704]
[1729029089793,0.03686063,66458.0,66457.0,0.55704]
[1729029092196,0.03686063,66458.0,66457.0,0.55204]
[1729029092505,0.03686063,66458.0,66457.0,0.56104]
[1729029093104,0.03686063,66458.0,66457.0,0.20424]
[1729029093406,0.03686063,66458.0,66457.0,0.56504]
[1729029094104,0.0659353,66458.0,66457.0,0.5998]
[1729029094314,0.0659353,66458.0,66457.0,0.67504]
[1729029094909,0.06593164,66458.0,66457.0,0.67504]
[1729029095506,0.06593164,66458.0,66457.0,0.65904]
[1729029095507,0.06593081,66458.0,66457.0,0.65904]
[1729029096725,0.06593081,66458.0,66457.0,0.54704]
[1729029096898,0.16419645,66469.0,66457.0,0.54704]
[1729029096899,0.13437987,66463.0,66462.0,0.075234]
[1729029097093,0.04619504,66463.0,66462.0,0.11]
[1729029097303,0.13448616,66463.0,66462.0,0.185234]
[1729029097506,0.13448616,66464.0,66463.0,0.075233]
[1729029097708,0.0461937,66464.0,66463.0,0.05952803]
[1729029097899,0.0461937,66464.0,66463.0,0.16952803]
[1729029098707,0.0461937,66464.0,66463.0,0.00386272]
[1729029099209,0.04619331,66464.0,66463.0,0.30809572]
[1729029099506,0.04619331,66464.0,66463.0,0.19809572]
[1729029100199,0.04619331,66464.0,66463.0,0.31439572]
[1729029100904,0.0862879,66477.0,66476.0,0.075218]
[1729029101109,0.075217,66477.0,66476.0,0.546018]
[1729029102013,0.19420306,66478.0,66477.0,0.075217]
[1729029102207,0.01097787,66479.0,66477.0,0.075217]
[1729029102408,0.075217,66477.0,66476.0,0.4708]
[1729029103411,0.05397698,66484.0,66476.0,0.4708]
[1729029103610,0.08632971,66485.0,66481.0,0.075213]
[1729029104506,0.01112071,66485.0,66484.0,0.075209]
[1729029104812,0.16423366,66485.0,66484.0,0.185209]
[1729029105209,0.03684929,66485.0,66484.0,0.185209]
[1729029105708,0.03684929,66485.0,66482.0,0.3608]
[1729029105920,0.21821064,66486.0,66482.0,0.436011]
[1729029105921,0.08303337,66484.0,66482.0,0.436011]
[1729029106111,0.08303337,66483.0,66482.0,0.436011]
[1729029107003,0.08303337,66483.0,66482.0,0.547011]
[1729029107004,0.14925064,66483.0,66482.0,0.547011]
[1729029107201,0.26134793,66483.0,66482.0,0.547011]
[1729029107400,0.2463945,66483.0,66482.0,0.656011]
[1729029107609,0.06591321,66483.0,66482.0,0.656011]
[1729029108312,0.06591321,66483.0,66482.0,0.657011]
[1729029108703,0.06591321,66483.0,66482.0,1.257011]
[1729029109205,0.06591321,66483.0,66482.0,1.256011]
[1729029109714,0.00225646,66494.0,66482.0,1.366011]
[1729029110011,0.00225646,66494.0,66493.0,0.796799]
[1729029111905,0.00225646,66494.0,66493.0,0.906799]
[1729029112107,0.00225646,66494.0,66493.0,0.903799]
[1729029113403,0.00225646,66494.0,66493.0,0.793799]
[1729029113603,0.075198,66497.0,66493.0,0.7306]
[1729029113801,0.075198,66494.0,66493.0,0.7306]
[1729029114003,0.075198,66494.0,66493.0,0.8406]
[1729029114208,0.075198,66494.0,66493.0,0.4798]
[1729029114611,0.075198,66494.0,66493.0,0.4908]
[1729029115404,0.075198,66494.0,66493.0,0.4788]
[1729029115605,1.126358,66494.0,66482.0,0.00225583]
[1729029115812,0.185198,66494.0,66485.0,0.075208]
[1729029116018,0.075207,66487.0,66485.0,0.075208]
[1729029116242,0.075198,66494.0,66485.0,0.075208]
[1729029116514,0.075207,66486.0,66485.0,0.075208]
[1729029118102,0.075208,66485.0,66484.0,0.185209]
[1729029118306,0.07521,66483.0,66482.0,0.01525583]
[1729029118511,0.07521,66483.0,66482.0,0.00225583]
[1729029118713,0.07522,66476.0,66475.0,0.075219]
[1729029119602,0.11207138,66476.0,66475.0,0.075219]
[1729029119810,0.11207138,66476.0,66472.0,0.3608]
[1729029119811,0.68304228,66476.0,66472.0,0.3608]
[1729029120013,0.075216,66479.0,66472.0,0.3608]
[1729029120014,0.20929665,66473.0,66472.0,0.3608]
[1729029120507,0.29233893,66473.0,66472.0,0.3608]
[1729029120705,1.20958428,66473.0,66472.0,0.3608]
[1729029120921,1.16339338,66473.0,66472.0,0.3608]
[1729029121312,1.20958571,66473.0,66472.0,0.19]
[1729029121617,1.42773374,66473.0,66472.0,0.19]
[1729029121802,1.37375749,66473.0,66472.0,0.19]
[1729029122006,1.20958914,66473.0,66472.0,0.19]
[1729029122206,1.21058914,66473.0,66472.0,0.2]
[1729029122418,1.26946055,66473.0,66464.0,0.3608]
[1729029122614,1.26946055,66473.0,66463.0,0.00386272]
[1729029122615,0.075232,66464.0,66463.0,0.00386272]
[1729029122925,0.29240223,66464.0,66463.0,0.07909572]
[1729029123120,0.15828334,66464.0,66463.0,0.07909572]
[1729029125122,0.15828334,66464.0,66463.0,0.08009572]
[1729029125719,0.15828334,66464.0,66463.0,0.00486272]
[1729029126220,0.30732331,66464.0,66463.0,0.00486272]
[1729029126420,0.15828334,66464.0,66463.0,0.00486272]
[1729029126613,0.30732331,66464.0,66463.0,0.00486272]
[1729029127518,0.23209131,66464.0,66461.0,0.24435441]
[1729029127823,0.14903997,66464.0,66461.0,0.24435441]
[1729029128026,0.075234,66462.0,66461.0,0.24435441]
[1729029128523,0.675234,66462.0,66461.0,0.07435441]
[1729029128722,1.126634,66462.0,66461.0,0.07435441]
[1729029128918,0.075238,66459.0,66458.0,0.075238]
[1729029129911,0.3608,66466.0,66457.0,0.17]
[1729029130117,0.44690409,66466.0,66465.0,0.17]
[1729029130322,0.075233,66463.0,66462.0,0.075234]
[1729029130814,1.126633,66463.0,66462.0,0.075234]
[1729029131720,1.137633,66463.0,66462.0,0.076234]
[1729029131915,0.537633,66463.0,66462.0,0.076234]
[1729029132416,0.547633,66463.0,66462.0,0.077234]
[1729029132617,0.021,66463.0,66462.0,0.077234]
[1729029135126,0.021,66463.0,66462.0,0.438034]
[1729029135332,0.37162268,66473.0,66472.0,0.075223]
[1729029136123,0.3608,66473.0,66472.0,0.075223]
[1729029136721,0.3608,66473.0,66472.0,0.079223]
[1729029137222,0.075218,66476.0,66472.0,0.004]
[1729029137424,0.075218,66476.0,66474.0,0.07522]
[1729029137722,0.3608,66481.0,66480.0,0.075214]
[1729029138035,0.37194767,66488.0,66487.0,0.075206]
[1729029138335,0.37194767,66488.0,66487.0,0.245206]
[1729029138336,0.01114767,66488.0,66487.0,0.245206]
[1729029138824,0.075201,66491.0,66489.0,0.075204]
[1729029140135,0.3608,66494.0,66489.0,0.075204]
[1729029140136,0.37166194,66494.0,66489.0,0.075204]
[1729029140835,0.01225675,66490.0,66489.0,0.076204]
[1729029141230,0.01225675,66490.0,66489.0,0.077204]
[1729029141623,0.435991,66501.0,66489.0,0.002]
[1729029141826,0.3608,66501.0,66500.0,0.075191]
[1729029142136,0.075186,66505.0,66493.0,0.17]
[1729029142332,0.075186,66505.0,66504.0,0.075187]
[1729029142933,0.18725119,66505.0,66504.0,0.067187]
[1729029143122,0.11206519,66505.0,66504.0,0.067187]
[1729029143446,0.14908717,66506.0,66505.0,0.075186]
[1729029143633,0.14913158,66506.0,66505.0,0.075186]
[1729029143828,0.11205821,66506.0,66505.0,0.075186]
[1729029144030,0.26118979,66506.0,66505.0,0.075186]
[1729029144233,0.11205821,66506.0,66505.0,0.075186]
[1729029144637,0.06588913,66506.0,66505.0,0.075186]
[1729029144828,0.06588913,66506.0,66505.0,0.181286]
[1729029145034,0.07488913,66506.0,66505.0,0.182286]
[1729029146639,0.06588913,66506.0,66505.0,0.181286]
[1729029147140,0.029055,66506.0,66505.0,0.181286]
[1729029149438,0.06588769,66507.0,66505.0,0.1061]
[1729029149628,0.06588769,66506.0,66505.0,0.1061]
[1729029149833,0.075183,66508.0,66507.0,0.075183]
[1729029153946,0.075184,66506.0,66505.0,0.1061]
[1729029154937,0.075184,66506.0,66505.0,0.181286]
[1729029155137,0.075184,66506.0,66505.0,0.1061]
[1729029155838,0.075187,66504.0,66503.0,0.075187]
[1729029156431,0.07518,66510.0,66509.0,0.07518]
[1729029157828,0.10423392,66510.0,66509.0,0.07518]
[1729029158328,0.10423392,66510.0,66509.0,0.06718]
[1729029159843,0.02905392,66510.0,66509.0,0.06718]
[1729029162644,0.06588593,66511.0,66506.0,0.075184]
[1729029162843,0.06588593,66510.0,66509.0,0.075181]
[1729029164942,0.075178,66512.0,66505.0,0.3608]
[1729029165172,0.075178,66512.0,66511.0,0.075179]
[1729029165347,0.10423135,66512.0,66511.0,0.075179]
[1729029166442,0.10423135,66512.0,66511.0,0.076179]
[1729029166849,0.27423135,66512.0,66511.0,0.076179]
[1729029167546,0.10423135,66512.0,66511.0,0.076179]
[1729029168647,0.10423135,66512.0,66511.0,0.075179]
[1729029169743,0.07518,66510.0,66505.0,0.3608]
[1729029169944,0.02905335,66509.0,66508.0,0.075182]
[1729029170144,0.02905342,66509.0,66508.0,0.075182]
[1729029171937,0.02905342,66509.0,66508.0,0.185182]
[1729029172848,0.02905342,66509.0,66508.0,0.188182]
[1729029173047,0.08298787,66509.0,66508.0,0.188182]
[1729029173647,0.08298787,66509.0,66508.0,0.180182]
[1729029173848,0.08298787,66509.0,66508.0,0.240182]
[1729029174051,0.08298787,66509.0,66508.0,0.343282]
[1729029175357,0.14985228,66509.0,66508.0,0.343282]
[1729029175654,0.08298787,66511.0,66508.0,0.343282]
[1729029175846,0.08298787,66510.0,66509.0,0.075181]
[1729029176040,0.16417178,66513.0,66512.0,0.075178]
[1729029176553,0.08298866,66513.0,66511.0,0.3608]
[1729029176854,0.14977486,66515.0,66514.0,0.075175]
[1729029177040,0.26177652,66515.0,66514.0,0.075175]
[1729029177247,0.26177652,66515.0,66512.0,0.1075]
[1729029177248,0.075177,66513.0,66512.0,0.1075]
[1729029177446,0.20996681,66513.0,66512.0,0.1075]
[1729029177643,0.11200466,66513.0,66512.0,0.1075]
[1729029177849,0.075178,66512.0,66511.0,0.3608]
[1729029178048,0.11200566,66512.0,66511.0,0.3608]
[1729029179352,0.075179,66511.0,66510.0,0.07518]
[1729029179548,0.11200666,66511.0,66510.0,0.07518]
[1729029180155,0.075179,66511.0,66510.0,0.07518]
[1729029182958,0.10423186,66511.0,66510.0,0.07518]
[1729029183657,0.10423186,66511.0,66505.0,0.4683]
[1729029183848,0.075184,66506.0,66505.0,0.3608]
[1729029184048,0.10423686,66506.0,66505.0,0.3608]
[1729029184351,0.14106979,66506.0,66505.0,0.3608]
[1729029184654,0.07519,66501.0,66500.0,0.07519]
[1729029184848,0.10424286,66501.0,66500.0,0.07519]
[1729029185559,0.14108128,66501.0,66500.0,0.07519]
[1729029185859,0.14108128,66501.0,66500.0,0.08319]
[1729029186061,0.14108128,66501.0,66500.0,0.09319]